Cogmind - Beta 14 @@@ ROGUE MODE // 2024.10.18 @ 23:09:31 Player: hoodiehair Result: Destroyed by G-47 Trooper with Particle Gun Performance ------------- Evolutions (2) 1000 Regions Visited (5) 1000 Robots Destroyed (48) 240 Value Destroyed (1638) 1638 Prototype IDs (1) 20 Alien Tech Used (0) 0 Bonus (81) 81 TOTAL SCORE: 3979 Bonus ------- High Alert Combat Kills 81 Cogmind --------- Core Integrity 0/550 Matter 102/300 Energy 265/265 System Corruption 4% Temperature Cool (9) Movement Core (200) Ox3 Location -8/Materials Parts ------- > --- POWER (2) -------- Improved Ion Engine > --- PROPULSION (3) --- (None) > --- UTILITY (3) ------ Improved Terrain Scan Processor > --- WEAPON (3) ------- Autogun > --- INVENTORY (5) ---- Medium Matter Pod (100) Matter Filter Improved Datajack Peak State ------------ > --- POWER ------------ Ion Engine Nuclear Core > --- PROPULSION ------- Aluminum Leg Aluminum Leg Carbon-fiber Leg > --- UTILITY ---------- Improved Heat Sink High-capacity Storage Unit Reaction Control System > --- WEAPON ----------- Improved EM Pulse Cannon Gauss Rifle Assault Cannon > --- INVENTORY -------- Ion Engine Light Deuterium Engine Light Treads Light Treads Aluminum Leg Aluminum Leg Aluminum Leg Medium Matter Pod Improved Terrain Scan Processor Field Recycling Unit Heavy EM Pulse Gun Beam Rifle Particle Gun Heavy Assault Rifle Improved Light Cannon Mini Grenade Launcher Improved Datajack [Rating: 30] Favorites ----------- Power Ion Engine Engine Ion Engine Power Core Nuclear Core Propulsion Aluminum Leg Treads Light Treads Leg Aluminum Leg Utility Improved Heat Sink Device Improved Heat Sink Storage High-capacity Storage Unit Processor Improved Terrain Scan Processor Protection Reflective Plating Weapon Particle Gun Energy Gun Particle Gun Energy Cannon Improved EM Pulse Cannon Ballistic Gun Gauss Rifle Ballistic Cannon Improved Light Cannon Launcher Advanced EMP Blaster Build | -11 -10 -10 -10 -9 -8 ------- Run | Yrd Mat Min Exi Min Mat Slots Evolved 4 | . . . . . 4 Power 1 | . . . . . 1 Propulsion 1 | . . . . . 1 Utility 1 | . . . . . 1 Weapon 1 | . . . . . 1 Parts Attached 43 | 6 4 1 . 1 31 Power 7 | 1 . . . . 6 Engine 6 | 1 . . . . 5 Core 1 | . . . . . 1 Reactor . | . . . . . . Propulsion 12 | 2 . . . . 10 Treads 2 | . . . . . 2 Leg 10 | 2 . . . . 8 Wheel . | . . . . . . Hover . | . . . . . . Flight . | . . . . . . Utility 8 | 1 2 . . 1 4 Device 2 | . 1 . . . 1 Storage 4 | 1 1 . . 1 1 Processor 1 | . . . . . 1 Hackware . | . . . . . . Protection 1 | . . . . . 1 Artifact . | . . . . . . Weapon 16 | 2 2 1 . . 11 Energy Gun 6 | 1 1 1 . . 3 Energy Cannon 1 | . . . . . 1 Ballistic Gun 4 | 1 . . . . 3 Ballistic Cannon 2 | . 1 . . . 1 Launcher 3 | . . . . . 3 Special Weapon . | . . . . . . Impact Weapon . | . . . . . . Slashing Weapon . | . . . . . . Piercing Weapon . | . . . . . . Special Melee Weapon . | . . . . . . Unidentified Prototypes 1 | . . . . . 1 Parts Lost 24 | . . . . . 24 Power 5 | . . . . . 5 Propulsion 8 | . . . . . 8 Utility 4 | . . . . . 4 Weapon 7 | . . . . . 7 Highest Loss Streak 13 | . . . . . 13 To Critical Strikes . | . . . . . . Average Slot Usage (%) 96 | . 96 100 100 100 93 Engine 12 | . 14 14 14 14 9 Core 2 | . . . . . 6 Leg 26 | . 28 28 28 28 25 Device 10 | . 10 14 14 14 6 Storage 12 | . 14 14 14 14 10 Processor 2 | . . . . . 4 Protection 1 | . . . . . 4 Energy Gun 10 | . 14 14 14 14 7 Energy Cannon 1 | . . . . . 2 Ballistic Gun 3 | . 9 . . . 5 Ballistic Cannon 10 | . 4 14 14 14 10 Peak Build Rating 30 | 6 11 12 12 12 30 Average Rating 16 | 3 9 11 12 12 24 On Entrance 8 | . 6 11 12 12 12 Naked Turns . | . . . . . . Heaviest Build 71 | 13 23 23 23 53 71 Greatest Support 35 | 20 20 20 20 20 35 Greatest Overweight (x) 16 | 3 1 1 1 2 16 Average Overweight (x) 1 | . . 1 1 1 1 Largest Inventory Capacity 20 | 8 10 10 10 20 20 Average Capacity 14 | 7 8 10 10 19 19 Most Carried 18 | 7 8 10 10 11 18 Average Carried 10 | 3 5 8 10 10 13 Final Capacity 20 | 8 10 10 10 20 5 Final Carried 11 | 3 6 10 10 11 3 Class Distribution -------------------- 62% | Mutant 21% | Tank 8% | Gunner 5% | Scavenger-Tank Dominant Class ---------------- Mutant | -10/Materials Mutant | -10/Mines Mutant | -10/Exiles Mutant | -9/Mines Tank | -8/Materials Resources | -11 -10 -10 -10 -9 -8 ----------- Run | Yrd Mat Min Exi Min Mat Matter Collected 964 | 243 47 35 . 10 629 Remotely . | . . . . . . Salvage Created 1719 | . 167 65 . . 1487 Parts 121 | . 14 3 . . 104 Haulers Intercepted . | . . . . . . Recyclers Shooed 1 | . . . . . 1 Parts Field Recycled . | . . . . . . Retrieved Matter . | . . . . . . Parts Self-Destructed . | . . . . . . Prevented . | . . . . . . Kills | -11 -10 -10 -10 -9 -8 ------- Run | Yrd Mat Min Exi Min Mat Combat Hostiles Destroyed 36 | . 3 2 . . 31 Guns 14 | . 3 . . . 11 Cannons 12 | . . 2 . . 10 AOE 10 | . . . . . 10 Classes Destroyed 10 | . 2 . . . 8 Builder 4 | . . . . . 4 Recycler 1 | . . . . . 1 Mechanic 1 | . . . . . 1 Operator 2 | . . . . . 2 Watcher 4 | . 2 . . . 2 Swarmer 6 | . . . . . 6 Grunt 22 | . 3 2 . . 17 Sentry 5 | . . . . . 5 Specialist 2 | . . . . . 2 Hunter 1 | . . . . . 1 Best Kill Streak 7 | . 2 2 . . 7 Combat Bots Only 5 | . 2 2 . . 5 Max Kills in Single Turn 2 | . 1 1 . . 2 Gunslinging . | . . . . . . Exploded 2 | . . . . . 2 Melee . | . . . . . . Uniques/NPCs Destroyed . | . . . . . . Combat | -11 -10 -10 -10 -9 -8 -------- Run | Yrd Mat Min Exi Min Mat Hostile Shots Fired 177 | . 10 2 . . 165 Missed 44 | . 3 1 . . 40 Damage Taken 2559 | . 98 14 . . 2447 Core 576 | . 25 . . . 551 Absorbed by Shields . | . . . . . . Ignored by Resistances 38 | . . . . . 38 Core Remaining (%) 95 | 100 . . . 90 . Volleys Fired 99 | . 16 2 . . 81 Largest 3 | . 2 2 . . 3 Hottest 165 | . 85 104 . . 165 Shots Fired 236 | . 31 4 . . 201 Gun 121 | . 31 2 . . 88 Cannon 99 | . . 2 . . 97 Launcher 16 | . . . . . 16 Special . | . . . . . . Kinetic 125 | . 16 2 . . 107 Thermal 66 | . 15 2 . . 49 Explosive 3 | . . . . . 3 Electromagnetic 42 | . . . . . 42 Robot Hit Streak 10 | . 6 5 . . 10 Robot Miss Streak 12 | . 2 . . . 12 Penetration Max 1 | . . . . . 1 Secondary Targets 2 | . 1 . . . 1 Max Gunslinging Chain 1 | . 1 . . . 1 Shots Hit Robots 118 | . 22 4 . . 92 Core Hits 79 | 1 11 3 . . 64 Critical Kills . | . . . . . . Critical Parts Destroyed . | . . . . . . Critical Strikes 5 | . 1 1 . . 3 Burn 4 | . 1 1 . . 2 Blast 1 | . . . . . 1 Melee Attacks . | . . . . . . Impact . | . . . . . . Slashing . | . . . . . . Piercing . | . . . . . . Sneak Attacks . | . . . . . . Combat Hostiles . | . . . . . . Follow-up Attacks . | . . . . . . Damage Inflicted 3551 | 4 224 83 . . 3240 Guns 1115 | . 224 31 . . 860 Cannons 1361 | . . 43 . . 1318 Explosions 1037 | . . . . . 1037 Melee . | . . . . . . Ramming 38 | 4 . 9 . . 25 Kinetic 1343 | . 92 43 . . 1208 Thermal 594 | . 132 31 . . 431 Explosive 465 | . . . . . 465 Electromagnetic 1111 | . . . . . 1111 Impact . | . . . . . . Slashing . | . . . . . . Piercing . | . . . . . . Highest Corruption 4 | . . . . . 4 Average Corruption 1 | . . . . . 1 Corruption Purged . | . . . . . . Corruption Blocked . | . . . . . . Effects 10 | . . . . . 10 Message Errors 2 | . . . . . 2 Matter Fused 3 | . . . . . 3 Heat Flow Errors 1 | . . . . . 1 Data Loss (minor) 1 | . . . . . 1 Data Loss (major) 1 | . . . . . 1 Weapon Failures 2 | . . . . . 2 Overload Shots . | . . . . . . Overflow Damage 80 | . . . . . 80 Projectiles 37 | . . . . . 37 Explosions 43 | . . . . . 43 Melee . | . . . . . . Knockbacks 9 | . . 1 . . 8 Impact 2 | . . 1 . . 1 Kinetic 7 | . . . . . 7 Secondary . | . . . . . . Self-Inflicted Damage 169 | . . . . . 169 Shots 8 | . . . . . 8 Rammed . | . . . . . . Targets Rammed 8 | 1 1 2 . . 4 Kicked 8 | 1 1 2 . . 4 Crushed . | . . . . . . Highest Temperature 669 | . 171 9 . . 669 Average Temperature 178 | . 65 5 . . 190 Received Heat Transfer 858 | . 57 9 . . 792 Effects 34 | . . . . . 34 Shutdowns 9 | . . . . . 9 Energy Bleed 4 | . . . . . 4 Interference 5 | . . . . . 5 Matter Decay 1 | . . . . . 1 Short Circuit 2 | . . . . . 2 Damage (minor) 3 | . . . . . 3 Damage (major) 9 | . . . . . 9 Damage (core) 1 | . . . . . 1 Siege Activations . | . . . . . . Robots Corrupted 1 | . . . . . 1 Combat Hostiles . | . . . . . . Parts Fried 6 | . . . . . 6 Impact Corruptions . | . . . . . . Robots Melted . | . . . . . . Combat Hostiles . | . . . . . . Parts Melted . | . . . . . . Heat Transferred 1715 | . 444 148 . . 1123 Parts Sabotaged . | . . . . . . Parts Stolen . | . . . . . . Parts Stripped . | . . . . . . Power Chain Reactions 4 | . . . . . 4 Alert | -11 -10 -10 -10 -9 -8 ------- Run | Yrd Mat Min Exi Min Mat Peak Influence 478 | . 129 65 . . 478 Initial . | . . . . . . Average 95 | . 52 23 . . 183 Maximum Alert Level 2 | . . . . . 2 Low Security (%) 77 | 100 100 100 . 100 48 Level 1 20 | . . . . . 46 Level 2 2 | . . . . . 5 Level 3 . | . . . . . . Level 4 . | . . . . . . Level 5 . | . . . . . . High Security . | . . . . . . Max Security . | . . . . . . Squads Dispatched 6 | . . . . . 6 Investigation . | . . . . . . Extermination . | . . . . . . Reinforcement 6 | . . . . . 6 Assault . | . . . . . . Garrison . | . . . . . . Intercept . | . . . . . . Searches Triggered . | . . . . . . Construction Impeded 2 | . . . . . 2 Haulers Reinforced . | . . . . . . Active Scanning Responses . | . . . . . . Cargo Convoy Interrupts . | . . . . . . Stealth | -11 -10 -10 -10 -9 -8 --------- Run | Yrd Mat Min Exi Min Mat Distress Signals 2 | . 2 . . . . Communications Jammed . | . . . . . . Distress Signals . | . . . . . . Times Spotted 57 | . 7 3 . . 47 Peak Tracking Total 15 | . 2 15 . . 7 Tactical Retreats 5 | . . 1 . . 4 Traps | -11 -10 -10 -10 -9 -8 ------- Run | Yrd Mat Min Exi Min Mat Traps Triggered 2 | . . . . . 2 Indirectly . | . . . . . . Trap Hack Attempts . | . . . . . . Triggered . | . . . . . . Disarmed . | . . . . . . Reprogrammed . | . . . . . . Reused . | . . . . . . Traps Extracted . | . . . . . . Installed . | . . . . . . Triggered . | . . . . . . Machines | -11 -10 -10 -10 -9 -8 ---------- Run | Yrd Mat Min Exi Min Mat Machines Disabled 2 | . 1 . . . 1 Max in Single Turn 1 | . 1 . . . 1 Machines Repaired . | . . . . . . Machines Dismantled . | . . . . . . Machines Sabotaged . | . . . . . . Overloaded Fab Kills . | . . . . . . Hacking | -11 -10 -10 -10 -9 -8 --------- Run | Yrd Mat Min Exi Min Mat Machines Accessed 2 | . 2 . . . . Terminals 1 | . 1 . . . . Fabricators . | . . . . . . Repair Stations . | . . . . . . Recycling Units 1 | . 1 . . . . Scanalyzers . | . . . . . . Garrison Access . | . . . . . . Total Hacks 3 | . 3 . . . . Successful 2 | . 2 . . . . Failed 1 | . 1 . . . . Catastrophic . | . . . . . . Database Lockouts . | . . . . . . Manual . | . . . . . . Terminals 1 | . 1 . . . . Fabricators . | . . . . . . Repair Stations . | . . . . . . Recycling Units 2 | . 2 . . . . Scanalyzers . | . . . . . . Garrison Access . | . . . . . . Terminal Hacks . | . . . . . . Fabricator Hacks . | . . . . . . Repair Station Hacks . | . . . . . . Recycling Unit Hacks 2 | . 2 . . . . Recycle Component 1 | . 1 . . . . Process 1 | . 1 . . . . Scanalyzer . | . . . . . . Garrison Access Hacks . | . . . . . . Unauthorized Hacks . | . . . . . . Terminals . | . . . . . . Fabricators . | . . . . . . Repair Stations . | . . . . . . Recycling Units . | . . . . . . Scanalyzers . | . . . . . . Garrison Access . | . . . . . . Data Cores Recovered . | . . . . . . Used . | . . . . . . Hacking Detections 2 | . 2 . . . . Full Trace Events . | . . . . . . Feedback Events . | . . . . . . Feedback Blocked . | . . . . . . Robot Schematics Acquired . | . . . . . . Robots Built . | . . . . . . Authchips . | . . . . . . Time . | . . . . . . Total Robot Build Rating . | . . . . . . Part Schematics Acquired . | . . . . . . Parts Built . | . . . . . . Authchips . | . . . . . . Time . | . . . . . . Total Part Build Rating . | . . . . . . Parts Repaired . | . . . . . . Time . | . . . . . . Parts Recycled 1 | . 1 . . . . Recycled Matter 114 | . 114 . . . . Retrieved Matter . | . . . . . . Retrieved Components . | . . . . . . Parts Scanalyzed . | . . . . . . Part Schematics Acquired . | . . . . . . Parts Damaged . | . . . . . . Bothacking | -11 -10 -10 -10 -9 -8 ------------ Run | Yrd Mat Min Exi Min Mat Used RIF Installer . | . . . . . . Robots Hacked . | . . . . . . Non-combat . | . . . . . . Combat . | . . . . . . Robot Hacks Applied . | . . . . . . Relay Couplers Released . | . . . . . . Fabnet Peak Effective % . | . . . . . . Robots Rewired . | . . . . . . Allies Hacked . | . . . . . . Hacks Repelled . | . . . . . . Allies | -11 -10 -10 -10 -9 -8 -------- Run | Yrd Mat Min Exi Min Mat Total Allies 2 | . . 2 . . . Largest Group 2 | . . 2 2 . . Highest-Rated Group 50 | . . 50 50 . . Highest-Rated Ally 31 | . . 31 31 . . Total Orders . | . . . . . . Ally Attacks 12 | . . 12 . . . Total Damage 63 | . . 63 . . . Kills 1 | . . 1 . . . Allies Corrupted . | . . . . . . Allies Melted . | . . . . . . Intel | -11 -10 -10 -10 -9 -8 ------- Run | Yrd Mat Min Exi Min Mat Robot Analysis Total . | . . . . . . Derelict Logs Recovered 1 | . . 1 . . . Drone Launches . | . . . . . . Drone Recoveries . | . . . . . . Exploration | -11 -10 -10 -10 -9 -8 ------------- Run | Yrd Mat Min Exi Min Mat Turns Passed 3874 | 63 528 1107 78 403 1695 Spaces Moved 1763 | 36 349 571 39 154 614 Core 34 | 15 . . . . 19 Treads 1 | . . . . . 1 Legs 1728 | 21 349 571 39 154 594 Wheels . | . . . . . . Hover . | . . . . . . Flight . | . . . . . . Fastest Speed 50 | 50 120 190 190 190 50 Average Speed 193 | 131 131 190 190 259 218 Slowest Speed 850 | 200 190 190 190 260 850 Overloaded Moves . | . . . . . . Propulsion Burnouts . | . . . . . . Robots Hopped . | . . . . . . Cave-ins Triggered . | . . . . . . Exploration Rate (%) 42 | 3 56 85 8 44 57 Regions Visited 5 Branch Regions 3 Pre-discovered Areas 1 | . . 1 . . . Known Exits Taken . | . . . . . . Unknown Exits Taken 5 | 1 1 1 1 1 . Scrap Searched 2 | . . 1 . 1 . Spaces Dug . | . . . . . . Terrain Destroyed 45 | . . . . . 45 Melee . | . . . . . . Projectile 17 | . . . . . 17 AOE 28 | . . . . . 28 Terrain Rammed . | . . . . . . Walls Destroyed . | . . . . . . Machines Disabled . | . . . . . . Actions | -11 -10 -10 -10 -9 -8 --------- Run | Yrd Mat Min Exi Min Mat Total 2032 | 51 391 588 43 159 800 Wait 75 | . 12 8 5 . 50 Move 1758 | 35 348 570 38 153 614 Hop . | . . . . . . Pick Up 34 | 9 7 4 . 1 13 Fast Attach 3 | . . . . . 3 Attach 33 | 6 3 . . . 24 Detach 7 | . 1 . . . 6 Swap 7 | . 1 1 . 1 4 Drop 5 | . 2 1 . 1 1 Fire 99 | . 16 2 . . 81 Melee . | . . . . . . Ram . | . . . . . . Kick 8 | 1 1 2 . . 4 Crush . | . . . . . . Escape Stasis . | . . . . . . Rewire 3 | . . . . 3 . Trap . | . . . . . . Miscellaneous . | . . . . . . Route ------- -11/Scrapyard -10/Materials (discovered 2 exits: [*Mat] / [*Min]) -10/Mines -10/Exiles -9/Mines -8/Materials History --------- Turn | Location | Event 28 | -11/Scrapyard | Discovered new exit (range 15) 64 | -11/Scrapyard | Entered Materials 302 | -10/Materials | Build established: Mutant 353 | -10/Materials | Discovered new exit (range 10) 522 | -10/Materials | Discovered new exit (range 13) 592 | -10/Materials | Entered Mines 733 | -10/Mines | Assembled infested the area 772 | -10/Mines | Met 8R-AWN 1427 | -10/Mines | Learned location of Zion (-6) 1688 | -10/Mines | Discovered new exit (range 5) 1699 | -10/Mines | Entered Exiles 1699 | -10/Exiles | Accompanied by 2 allies 1729 | -10/Exiles | Led the pair of lost Derelicts to a safe place 1750 | -10/Exiles | Discovered new exit (range 15) 1777 | -10/Exiles | Entered Mines 2068 | -9/Mines | Discovered new exit (range 10) 2180 | -9/Mines | Entered Materials 2180 | -8/Materials | Evolved 4 slots: Power x1, Propulsion x1, Utility x1, Weapon x1 2829 | -8/Materials | Build established: Tank 2989 | -8/Materials | Lost 4 parts (1n2u1w) 3798 | -8/Materials | Core integrity fell below 50% 3852 | -8/Materials | Core integrity fell below 20% 3875 | -8/Materials | Destroyed by G-47 Trooper with Particle Gun Last Messages --------------- 03838_ R-06 Scavenger collects Lgt. Treads. 03839_ Acquired Autogun. 03843_ Destroyed Imp. Heat Sink. 03843_ G-47 Trooper destroyed. 03843_ Destroyed Lgt. Nuclear Core. 03846_ G-47 Trooper destroyed. 03847_ The unstable cave ceiling collapses. 03847_ Aluminum Leg crushed. 03849_ G-47 Trooper destroyed. 03851_ Penetrated by Slug. 03853_ Mni. Grenade Launcher destroyed. 03854_ M-13 Machinist repairs H-61 Shepherd. 03861_ Atomic Centrifuge disabled. 03862_ G-47 Trooper destroyed. 03862_ Switching to secondary target: H-61 Shepherd. 03862_ M-13 Machinist destroyed. 03863_ Hvy. EM Pulse Gun destroyed. 03866_ Acquired 29 matter. 03872_ U-05 Engineer lays Concrete. Map ----- +----------------------------------------------------+ | ????????# ?? ? !%=## #????????? | | ????????# ???#"##"["" [ #????????? | | ?????????# ###### = % ###???????? | | ??? ###### # ! # [* #???????? | | ## # #/ [ !#"#???????? | | """" ## + #/// ###???????? | | """" ## # #/// % #?????????? | | """" ## # # % % #?????????? | | ## # # % #?????????? | | ## # # ] ##########? | | "T" ! ## # # [ [! # T #? | | ?? ??# ###### %[ # """ #? | | ####+##### ###### ! % # """ #? | | % = u % # """ #? | | % ! ! == #? | | * % = = !%= " = """ #? | | #####+##### # """ #? | | ### ## [!! #^ # """ #? | | ?# ## % # !!! H""# #? | | # ## # !]g% Y"##########? | | # ## # !] ""#?????????? | | + + # #?????????? | | # ## # % #?????????? | | ### ## ######;#;+#####??????? | | #???# ## #???# #??????? | | ????# ## #???# ""@""" #??????? | | ????# ###########???# """ """ #??????? | | ????# #?????????????# """ """ #??????? | | ???## ##????????????# #??????? | | #### ############## #??????? | | % +% #??????? | | #### ############## #??????? | | ??###+####??????????###########??????? | | ??# #???????????????????????????? | | ??# #???????????????????????????? | | ??#/ #???????????????????????????? | | ??# = #???????????????????????????? | | ??# #???????????????????????????? | | ??# ! /#???????????????????????????? | | ??########???????????????????????????? | | ?????????????????????????????????????? | | ?????????????????????????????????????? | | ?????????????????????????????????????? | | ?????????????????????????????????????? | | ?????????????????????????????????????? | | ?????????????????????????????????????? | | ?????????????????????????????????????? | | ?????????????????????????????????????? | | ?????????????????????????????????????? | | ?????????????????????????????????????? | +----------------------------------------------------+ Best States ------------- Heat Dissipation 45 Energy Generation 23 Energy Capacity 400 Matter Stores 360 Matter Capacity 400 Sight Range 16 Terrain Scan Density 110 Armor Coverage 150 Resistance: TH 10 Evasion (%) 55 Recoil Reduction 2 Item Schematics ----------------- None Robot Schematics ------------------ None Fabricated ------------ Nothing Alien Tech Used ----------------- None Achievements -------------- I Survived The Infestation Please Form A Line Slippery One Challenges ------------ None Game ------ Seed CoreDisruptorBallwheel Manual? 0 Play Time 00:37:00 Cumulative 4.5 hours Start 2024.10.18 @ 22:28:56 End 2024.10.18 @ 23:09:31 Sessions 1 Manual Loads 0 Difficulty Rogue Special Mode None Game No. 7 Rogue 5 Adventurer 2 Explorer 0 Win Type - Total 0 Types 0/0/0/0/0/0/0/0/0 Lore% 2 Gallery% 10 Achievement% 9 Wizard Run 0 Options --------- Layout 2 ASCII 0 Keyboard 1 Movement Numpad Keybinds 0 Fullscreen 2 Font 24/Proggy Map View 50x44 Zoom Use 0% Tactical HUD 1 Map Filters NONE Filters NONE Steam 1 RUN: 722faa91-317d-4ccf-92ce-6d498874d444